[Event "Titled Tuesday Blitz October 26 2021"]
[White "Korchmar, Vasiliy"]
[Black "Bacrot, Etienne"]
[WhiteFideId "24131750"]
[BlackFideId "605506"]
[WhiteElo "2370"]
[BlackElo "2673"]
[Result "0-1"]
[Round "07"]
[TimeControl "180+1"]
[Date "2021.10.26"]
[WhiteClock "0:00:02"]
[BlackClock "0:00:24"]

1. e4 {[%clk 0:03:00]}  e5 {[%clk 0:02:56]} 2. Nf3 {[%clk 0:03:00]}  Nc6 {[%clk 0:02:56]} 3. Nc3 {[%clk 0:03:00]}  Nf6 {[%clk 0:02:53]} 4. h3 {[%clk 0:03:00]}  d6 {[%clk 0:02:51]} 5. Bc4 {[%clk 0:02:54]}  h6 {[%clk 0:02:46]} 6. a4 {[%clk 0:02:47]}  g5 {[%clk 0:02:44]} 7. d4 {[%clk 0:02:35]}  Qe7 {[%clk 0:02:38]} 8. dxe5 {[%clk 0:01:58]}  Nxe5 {[%clk 0:02:31]} 9. Nxe5 {[%clk 0:01:40]}  Qxe5 {[%clk 0:02:30]} 10. Be3 {[%clk 0:01:21]}  Bg7 {[%clk 0:02:26]} 11. Bd4 {[%clk 0:01:03]}  Qe7 {[%clk 0:02:24]} 12. O-O {[%clk 0:01:02]}  Be6 {[%clk 0:02:17]} 13. Bxe6 {[%clk 0:00:47]}  fxe6 {[%clk 0:02:16]} 14. e5 {[%clk 0:00:46]}  dxe5 {[%clk 0:02:13]} 15. Bxe5 {[%clk 0:00:47]}  O-O {[%clk 0:02:12]} 16. Qe2 {[%clk 0:00:46]}  Rae8 {[%clk 0:02:03]} 17. Rfe1 {[%clk 0:00:44]}  Nd5 {[%clk 0:01:55]} 18. Bxg7 {[%clk 0:00:32]}  Nf4 {[%clk 0:01:54]} 19. Qe5 {[%clk 0:00:18]}  Qxg7 {[%clk 0:01:49]} 20. Rad1 {[%clk 0:00:13]}  Rd8 {[%clk 0:01:38]} 21. Rxd8 {[%clk 0:00:09]}  Rxd8 {[%clk 0:01:37]} 22. Qxg7+ {[%clk 0:00:07]}  Kxg7 {[%clk 0:01:37]} 23. g3 {[%clk 0:00:08]}  Nxh3+ {[%clk 0:01:34]} 24. Kg2 {[%clk 0:00:07]}  g4 {[%clk 0:01:35]} 25. Rxe6 {[%clk 0:00:08]}  Rd2 {[%clk 0:01:30]} 26. Re2 {[%clk 0:00:07]}  Rd7 {[%clk 0:01:29]} 27. Re4 {[%clk 0:00:03]}  h5 {[%clk 0:01:29]} 28. Re5 {[%clk 0:00:03]}  Kg6 {[%clk 0:01:28]} 29. Re6+ {[%clk 0:00:02]}  Kf5 {[%clk 0:01:24]} 30. Re8 {[%clk 0:00:02]}  Rd2 {[%clk 0:01:22]} 31. Re2 {[%clk 0:00:01]}  Rd7 {[%clk 0:01:22]} 32. Re8 {[%clk 0:00:01]}  Ng5 {[%clk 0:01:20]} 33. Rf8+ {[%clk 0:00:01]}  Kg6 {[%clk 0:01:18]} 34. Rg8+ {[%clk 0:00:02]}  Kf6 {[%clk 0:01:15]} 35. Rf8+ {[%clk 0:00:02]}  Kg7 {[%clk 0:01:15]} 36. Re8 {[%clk 0:00:02]}  Nf3 {[%clk 0:01:13]} 37. Re2 {[%clk 0:00:02]}  Kg6 {[%clk 0:01:03]} 38. Re6+ {[%clk 0:00:01]}  Kf5 {[%clk 0:01:02]} 39. Re8 {[%clk 0:00:02]}  b6 {[%clk 0:00:57]} 40. Re2 {[%clk 0:00:02]}  c5 {[%clk 0:00:57]} 41. Re8 {[%clk 0:00:02]}  Rd4 {[%clk 0:00:54]} 42. Rf8+ {[%clk 0:00:02]}  Kg6 {[%clk 0:00:54]} 43. Rg8+ {[%clk 0:00:02]}  Kh7 {[%clk 0:00:51]} 44. Ra8 {[%clk 0:00:02]}  Rd7 {[%clk 0:00:51]} 45. Re8 {[%clk 0:00:02]}  Kg6 {[%clk 0:00:50]} 46. Re6+ {[%clk 0:00:02]}  Kf7 {[%clk 0:00:48]} 47. Rh6 {[%clk 0:00:02]}  Rd2 {[%clk 0:00:40]} 48. Rh7+ {[%clk 0:00:02]}  Kg6 {[%clk 0:00:39]} 49. Rxa7 {[%clk 0:00:02]}  Rxc2 {[%clk 0:00:40]} 50. Rd7 {[%clk 0:00:01]}  Rxb2 {[%clk 0:00:34]} 51. Rd6+ {[%clk 0:00:01]}  Kg7 {[%clk 0:00:32]} 52. Rd7+ {[%clk 0:00:01]}  Kg6 {[%clk 0:00:32]} 53. Rd6+ {[%clk 0:00:02]}  Kf7 {[%clk 0:00:32]} 54. Rd5 {[%clk 0:00:01]}  Rc2 {[%clk 0:00:29]} 55. Ne4 {[%clk 0:00:02]}  Kg6 {[%clk 0:00:23]} 56. Rd6+ {[%clk 0:00:02]}  Kf5 {[%clk 0:00:24]} 0-1


[Site "https://www.chess.com"]

[Event "Titled Tuesday Blitz October 26 2021"]
[White "Maksimovic, Bojan"]
[Black "Carnicelli, Valerio"]
[WhiteFideId "14408120"]
[BlackFideId "856185"]
[WhiteElo "2439"]
[BlackElo "2332"]
[Result "1-0"]
[Round "07"]
[TimeControl "180+1"]
[Date "2021.10.26"]
[WhiteClock "0:00:07"]
[BlackClock "0:00:22"]

1. Nf3 {[%clk 0:03:00]}  Nf6 {[%clk 0:02:59]} 2. g3 {[%clk 0:02:59]}  g6 {[%clk 0:03:00]} 3. Bg2 {[%clk 0:02:59]}  Bg7 {[%clk 0:03:01]} 4. O-O {[%clk 0:03:00]}  O-O {[%clk 0:03:01]} 5. c4 {[%clk 0:03:00]}  d6 {[%clk 0:03:02]} 6. d4 {[%clk 0:03:00]}  Nbd7 {[%clk 0:03:02]} 7. Nc3 {[%clk 0:03:00]}  e5 {[%clk 0:03:03]} 8. e4 {[%clk 0:03:01]}  c6 {[%clk 0:03:03]} 9. h3 {[%clk 0:02:56]}  Qb6 {[%clk 0:03:03]} 10. c5 {[%clk 0:02:55]}  dxc5 {[%clk 0:03:03]} 11. dxe5 {[%clk 0:02:55]}  Ne8 {[%clk 0:03:03]} 12. e6 {[%clk 0:02:55]}  fxe6 {[%clk 0:03:03]} 13. Ng5 {[%clk 0:02:53]}  Ne5 {[%clk 0:03:02]} 14. f4 {[%clk 0:02:47]}  c4+ {[%clk 0:03:02]} 15. Kh2 {[%clk 0:02:35]}  Nd3 {[%clk 0:03:02]} 16. e5 {[%clk 0:02:30]}  Nxb2 {[%clk 0:02:44]} 17. Qe2 {[%clk 0:01:58]}  Nd3 {[%clk 0:02:43]} 18. Be3 {[%clk 0:01:51]}  Qc7 {[%clk 0:02:29]} 19. a4 {[%clk 0:01:39]}  Bd7 {[%clk 0:02:24]} 20. Qc2 {[%clk 0:01:27]}  Rd8 {[%clk 0:02:13]} 21. Nce4 {[%clk 0:01:18]}  h6 {[%clk 0:01:57]} 22. Nf3 {[%clk 0:01:17]}  Nb4 {[%clk 0:01:56]} 23. Qxc4 {[%clk 0:01:15]}  Nd5 {[%clk 0:01:57]} 24. Bc5 {[%clk 0:01:12]}  Rf7 {[%clk 0:01:55]} 25. Nd6 {[%clk 0:01:08]}  Nxd6 {[%clk 0:01:54]} 26. exd6 {[%clk 0:01:08]}  Qb8 {[%clk 0:01:47]} 27. Ne5 {[%clk 0:01:07]}  Rf6 {[%clk 0:01:40]} 28. Rae1 {[%clk 0:00:58]}  b6 {[%clk 0:01:39]} 29. Ba3 {[%clk 0:00:56]}  b5 {[%clk 0:01:27]} 30. axb5 {[%clk 0:00:47]}  cxb5 {[%clk 0:01:28]} 31. Qb3 {[%clk 0:00:39]}  Kh7 {[%clk 0:01:22]} 32. Nxd7 {[%clk 0:00:33]}  Rxd7 {[%clk 0:01:23]} 33. Bb2 {[%clk 0:00:33]}  Rff7 {[%clk 0:01:21]} 34. Bxg7 {[%clk 0:00:33]}  Rxg7 {[%clk 0:01:22]} 35. Rxe6 {[%clk 0:00:33]}  Nb6 {[%clk 0:01:15]} 36. Qxb5 {[%clk 0:00:29]}  Rxd6 {[%clk 0:01:15]} 37. Re8 {[%clk 0:00:28]}  Qc7 {[%clk 0:01:10]} 38. Qe5 {[%clk 0:00:22]}  Rd2 {[%clk 0:01:05]} 39. Qxc7 {[%clk 0:00:15]}  Rxc7 {[%clk 0:01:06]} 40. Rfe1 {[%clk 0:00:15]}  Nd5 {[%clk 0:00:51]} 41. Kh1 {[%clk 0:00:10]}  a5 {[%clk 0:00:39]} 42. Rd8 {[%clk 0:00:06]}  Rc5 {[%clk 0:00:33]} 43. Bxd5 {[%clk 0:00:05]}  g5 {[%clk 0:00:19]} 44. Be4+ {[%clk 0:00:05]}  Kg7 {[%clk 0:00:20]} 45. Rxd2 {[%clk 0:00:05]}  gxf4 {[%clk 0:00:20]} 46. gxf4 {[%clk 0:00:06]}  Rc4 {[%clk 0:00:21]} 47. Bd5 {[%clk 0:00:06]}  Rxf4 {[%clk 0:00:21]} 48. Rg2+ {[%clk 0:00:07]}  Kf6 {[%clk 0:00:21]} 49. Kg1 {[%clk 0:00:07]}  a4 {[%clk 0:00:21]} 50. Rf2 {[%clk 0:00:08]}  Kg5 {[%clk 0:00:21]} 51. Rxf4 {[%clk 0:00:07]}  Kxf4 {[%clk 0:00:22]} 52. Kf2 {[%clk 0:00:07]} 1-0


[Site "https://www.chess.com"]

[Event "Titled Tuesday Blitz October 26 2021"]
[White "Mamedyarov, Shakhriyar"]
[Black "Martinez Alcantara, Jose Eduardo"]
[WhiteFideId "13401319"]
[BlackFideId "3805662"]
[WhiteElo "2754"]
[BlackElo "2690"]
[Result "1-0"]
[Round "07"]
[TimeControl "180+1"]
[Date "2021.10.26"]
[WhiteClock "0:01:04"]
[BlackClock "0:00:34"]

1. d4 {[%clk 0:03:00]}  Nf6 {[%clk 0:02:59]} 2. c4 {[%clk 0:03:00]}  e6 {[%clk 0:03:00]} 3. Nc3 {[%clk 0:03:01]}  Bb4 {[%clk 0:03:00]} 4. f3 {[%clk 0:03:01]}  d5 {[%clk 0:02:52]} 5. a3 {[%clk 0:03:01]}  Bxc3+ {[%clk 0:02:52]} 6. bxc3 {[%clk 0:03:02]}  c5 {[%clk 0:02:52]} 7. cxd5 {[%clk 0:03:01]}  Nxd5 {[%clk 0:02:53]} 8. dxc5 {[%clk 0:03:01]}  f5 {[%clk 0:02:53]} 9. Nh3 {[%clk 0:02:53]}  Qf6 {[%clk 0:02:33]} 10. Qd4 {[%clk 0:02:29]}  Qe7 {[%clk 0:02:29]} 11. e4 {[%clk 0:02:27]}  fxe4 {[%clk 0:02:22]} 12. fxe4 {[%clk 0:02:27]}  Nf6 {[%clk 0:02:20]} 13. Bf4 {[%clk 0:02:21]}  Nc6 {[%clk 0:02:00]} 14. Bb5 {[%clk 0:02:20]}  Bd7 {[%clk 0:02:00]} 15. Bxc6 {[%clk 0:01:35]}  Bxc6 {[%clk 0:02:00]} 16. O-O {[%clk 0:01:36]}  Nxe4 {[%clk 0:01:22]} 17. Bd6 {[%clk 0:01:35]}  e5 {[%clk 0:00:56]} 18. Qxe4 {[%clk 0:01:26]}  Bxe4 {[%clk 0:00:55]} 19. Bxe7 {[%clk 0:01:26]}  Kxe7 {[%clk 0:00:56]} 20. Rae1 {[%clk 0:01:26]}  Bg6 {[%clk 0:00:56]} 21. Rxe5+ {[%clk 0:01:25]}  Kd7 {[%clk 0:00:56]} 22. Rd1+ {[%clk 0:01:25]}  Kc7 {[%clk 0:00:52]} 23. Re7+ {[%clk 0:01:19]}  Kc6 {[%clk 0:00:51]} 24. Nf4 {[%clk 0:01:20]}  Rad8 {[%clk 0:00:42]} 25. Rxd8 {[%clk 0:01:11]}  Rxd8 {[%clk 0:00:43]} 26. Nxg6 {[%clk 0:01:12]}  hxg6 {[%clk 0:00:43]} 27. Rxg7 {[%clk 0:01:12]}  Rd3 {[%clk 0:00:43]} 28. h4 {[%clk 0:01:08]}  Rxc3 {[%clk 0:00:43]} 29. Rxg6+ {[%clk 0:01:08]}  Kxc5 {[%clk 0:00:42]} 30. h5 {[%clk 0:01:08]}  Kb5 {[%clk 0:00:39]} 31. h6 {[%clk 0:01:07]}  Rc7 {[%clk 0:00:34]} 32. Rg7 {[%clk 0:01:04]} 1-0


[Site "https://www.chess.com"]

[Event "Titled Tuesday Blitz October 26 2021"]
[White "Moroni, Luca Jr"]
[Black "Aloma Vidal, Robert"]
[WhiteFideId "865834"]
[BlackFideId "2260409"]
[WhiteElo "2491"]
[BlackElo "2435"]
[Result "1-0"]
[Round "07"]
[TimeControl "180+1"]
[Date "2021.10.26"]
[WhiteClock "0:00:28"]
[BlackClock "0:00:20"]

1. d4 {[%clk 0:03:00]}  d5 {[%clk 0:02:58]} 2. c4 {[%clk 0:03:01]}  c6 {[%clk 0:02:58]} 3. Nc3 {[%clk 0:03:01]}  Nf6 {[%clk 0:02:58]} 4. Nf3 {[%clk 0:03:01]}  e6 {[%clk 0:02:58]} 5. Bg5 {[%clk 0:03:01]}  Nbd7 {[%clk 0:02:58]} 6. e3 {[%clk 0:03:00]}  h6 {[%clk 0:02:58]} 7. Bh4 {[%clk 0:03:00]}  g5 {[%clk 0:02:58]} 8. Bg3 {[%clk 0:03:00]}  Nh5 {[%clk 0:02:59]} 9. cxd5 {[%clk 0:02:58]}  exd5 {[%clk 0:02:57]} 10. Bd3 {[%clk 0:02:57]}  Nxg3 {[%clk 0:02:56]} 11. hxg3 {[%clk 0:02:58]}  Bg7 {[%clk 0:02:56]} 12. Bf5 {[%clk 0:02:55]}  Qe7 {[%clk 0:02:40]} 13. Qd3 {[%clk 0:02:52]}  Nb6 {[%clk 0:02:38]} 14. Bxc8 {[%clk 0:02:48]}  Nxc8 {[%clk 0:02:37]} 15. O-O-O {[%clk 0:02:41]}  Nd6 {[%clk 0:02:36]} 16. Kb1 {[%clk 0:02:42]}  O-O-O {[%clk 0:02:31]} 17. Qc2 {[%clk 0:02:40]}  Kb8 {[%clk 0:02:32]} 18. Ne1 {[%clk 0:02:34]}  f5 {[%clk 0:02:21]} 19. Nd3 {[%clk 0:02:33]}  Ne4 {[%clk 0:02:20]} 20. Nxe4 {[%clk 0:02:12]}  dxe4 {[%clk 0:01:52]} 21. Nc5 {[%clk 0:02:11]}  Rhe8 {[%clk 0:01:45]} 22. Qb3 {[%clk 0:01:56]}  Ka8 {[%clk 0:01:45]} 23. Rc1 {[%clk 0:01:53]}  f4 {[%clk 0:01:39]} 24. gxf4 {[%clk 0:01:48]}  gxf4 {[%clk 0:01:39]} 25. Rh5 {[%clk 0:01:30]}  fxe3 {[%clk 0:01:37]} 26. fxe3 {[%clk 0:01:31]}  Bf6 {[%clk 0:01:22]} 27. Rxh6 {[%clk 0:01:24]}  Bg5 {[%clk 0:01:22]} 28. Re6 {[%clk 0:01:21]}  Qh7 {[%clk 0:01:09]} 29. a3 {[%clk 0:01:06]}  b6 {[%clk 0:01:01]} 30. Rxe8 {[%clk 0:01:00]}  Rxe8 {[%clk 0:01:00]} 31. Ne6 {[%clk 0:00:59]}  Bxe3 {[%clk 0:00:44]} 32. Rxc6 {[%clk 0:00:58]}  Bd2 {[%clk 0:00:40]} 33. Nc7+ {[%clk 0:00:30]}  Kb7 {[%clk 0:00:38]} 34. Nxe8 {[%clk 0:00:30]}  Kxc6 {[%clk 0:00:25]} 35. Qc2+ {[%clk 0:00:29]}  Kb7 {[%clk 0:00:20]} 36. Nd6+ {[%clk 0:00:28]} 1-0


[Site "https://www.chess.com"]

[Event "Titled Tuesday Blitz October 26 2021"]
[White "Nozdrachev, Leonid"]
[Black "Yeletsky, Ivan"]
[WhiteFideId "24113433"]
[BlackFideId "24180327"]
[WhiteElo "2124"]
[BlackElo "2352"]
[Result "0-1"]
[Round "07"]
[TimeControl "180+1"]
[Date "2021.10.26"]
[WhiteClock "0:00:05"]
[BlackClock "0:00:08"]

1. e4 {[%clk 0:03:00]}  Nf6 {[%clk 0:02:46]} 2. e5 {[%clk 0:02:59]}  Nd5 {[%clk 0:02:47]} 3. d4 {[%clk 0:02:59]}  d6 {[%clk 0:02:47]} 4. Nf3 {[%clk 0:02:58]}  dxe5 {[%clk 0:02:46]} 5. Nxe5 {[%clk 0:02:57]}  c6 {[%clk 0:02:47]} 6. Be2 {[%clk 0:02:40]}  Bf5 {[%clk 0:02:46]} 7. O-O {[%clk 0:02:38]}  Nd7 {[%clk 0:02:46]} 8. c4 {[%clk 0:02:35]}  Nc7 {[%clk 0:02:38]} 9. Nf3 {[%clk 0:02:23]}  g6 {[%clk 0:02:36]} 10. Nc3 {[%clk 0:02:10]}  Bg7 {[%clk 0:02:36]} 11. Nh4 {[%clk 0:02:11]}  e6 {[%clk 0:02:27]} 12. Nxf5 {[%clk 0:02:05]}  exf5 {[%clk 0:02:27]} 13. Bf3 {[%clk 0:01:54]}  O-O {[%clk 0:02:26]} 14. d5 {[%clk 0:01:53]}  Ne5 {[%clk 0:02:24]} 15. dxc6 {[%clk 0:01:53]}  bxc6 {[%clk 0:02:24]} 16. Bf4 {[%clk 0:01:41]}  Qxd1 {[%clk 0:02:20]} 17. Bxd1 {[%clk 0:01:42]}  Ne6 {[%clk 0:02:18]} 18. Bxe5 {[%clk 0:01:39]}  Bxe5 {[%clk 0:02:18]} 19. Ba4 {[%clk 0:01:30]}  Bxc3 {[%clk 0:01:51]} 20. bxc3 {[%clk 0:01:31]}  Rac8 {[%clk 0:01:51]} 21. Rfe1 {[%clk 0:01:22]}  Nc5 {[%clk 0:01:47]} 22. Bc2 {[%clk 0:01:21]}  Rfd8 {[%clk 0:01:40]} 23. Re5 {[%clk 0:01:13]}  Ne6 {[%clk 0:01:25]} 24. Rd1 {[%clk 0:01:02]}  Rxd1+ {[%clk 0:01:23]} 25. Bxd1 {[%clk 0:01:03]}  Rb8 {[%clk 0:01:09]} 26. Bb3 {[%clk 0:00:58]}  c5 {[%clk 0:01:03]} 27. Rd5 {[%clk 0:00:52]}  Rb7 {[%clk 0:01:03]} 28. g3 {[%clk 0:00:50]}  Kf8 {[%clk 0:00:43]} 29. Ba4 {[%clk 0:00:49]}  Ke7 {[%clk 0:00:40]} 30. Bb5 {[%clk 0:00:49]}  Rc7 {[%clk 0:00:36]} 31. a4 {[%clk 0:00:45]}  Ng5 {[%clk 0:00:25]} 32. Re5+ {[%clk 0:00:38]}  Kf6 {[%clk 0:00:22]} 33. Re8 {[%clk 0:00:35]}  Ne4 {[%clk 0:00:22]} 34. Rb8 {[%clk 0:00:30]}  Nxc3 {[%clk 0:00:22]} 35. a5 {[%clk 0:00:30]}  Ne4 {[%clk 0:00:17]} 36. a6 {[%clk 0:00:30]}  Nd6 {[%clk 0:00:17]} 37. Kg2 {[%clk 0:00:30]}  Rc8 {[%clk 0:00:14]} 38. Rxc8 {[%clk 0:00:17]}  Nxc8 {[%clk 0:00:15]} 39. f4 {[%clk 0:00:16]}  Nd6 {[%clk 0:00:14]} 40. Kf3 {[%clk 0:00:16]}  Ke7 {[%clk 0:00:13]} 41. Ke3 {[%clk 0:00:16]}  Kd8 {[%clk 0:00:12]} 42. Kd3 {[%clk 0:00:16]}  Kc7 {[%clk 0:00:12]} 43. h4 {[%clk 0:00:14]}  Kb6 {[%clk 0:00:10]} 44. Bd7 {[%clk 0:00:06]}  h5 {[%clk 0:00:10]} 45. Kc3 {[%clk 0:00:03]}  Kxa6 {[%clk 0:00:11]} 46. Bc6 {[%clk 0:00:03]}  Kb6 {[%clk 0:00:11]} 47. Bd5 {[%clk 0:00:04]}  Kc7 {[%clk 0:00:09]} 48. Kb3 {[%clk 0:00:04]}  Kd7 {[%clk 0:00:09]} 49. Ka4 {[%clk 0:00:04]}  Ke7 {[%clk 0:00:10]} 50. Ka5 {[%clk 0:00:04]}  Ne4 {[%clk 0:00:11]} 51. Kb5 {[%clk 0:00:03]}  a6+ {[%clk 0:00:09]} 52. Kb6 {[%clk 0:00:02]}  a5 {[%clk 0:00:10]} 53. Kxa5 {[%clk 0:00:02]}  Nxg3 {[%clk 0:00:10]} 54. Kb6 {[%clk 0:00:03]}  Ne4 {[%clk 0:00:10]} 55. Kb5 {[%clk 0:00:03]}  f6 {[%clk 0:00:09]} 56. Kc6 {[%clk 0:00:03]}  g5 {[%clk 0:00:04]} 57. fxg5 {[%clk 0:00:02]}  fxg5 {[%clk 0:00:05]} 58. hxg5 {[%clk 0:00:03]}  h4 {[%clk 0:00:05]} 59. g6 {[%clk 0:00:02]}  Kf6 {[%clk 0:00:04]} 60. Bxe4 {[%clk 0:00:01]}  fxe4 {[%clk 0:00:05]} 61. Kxc5 {[%clk 0:00:02]}  e3 {[%clk 0:00:05]} 62. Kd6 {[%clk 0:00:02]}  e2 {[%clk 0:00:05]} 63. c5 {[%clk 0:00:03]}  e1=Q {[%clk 0:00:06]} 64. c6 {[%clk 0:00:04]}  Qe5+ {[%clk 0:00:06]} 65. Kd7 {[%clk 0:00:04]}  Kxg6 {[%clk 0:00:06]} 66. c7 {[%clk 0:00:04]}  Qxc7+ {[%clk 0:00:07]} 67. Kxc7 {[%clk 0:00:05]}  h3 {[%clk 0:00:08]} 0-1


[Site "https://www.chess.com"]

[Event "Titled Tuesday Blitz October 26 2021"]
[White "Pultinevicius, Paulius"]
[Black "Svane, Rasmus"]
[WhiteFideId "12809390"]
[BlackFideId "4657101"]
[WhiteElo "2467"]
[BlackElo "2643"]
[Result "0-1"]
[Round "07"]
[TimeControl "180+1"]
[Date "2021.10.26"]
[WhiteClock "0:00:01"]
[BlackClock "0:00:30"]

1. d4 {[%clk 0:03:00]}  Nf6 {[%clk 0:02:59]} 2. c4 {[%clk 0:03:01]}  e6 {[%clk 0:02:59]} 3. Nf3 {[%clk 0:03:00]}  d5 {[%clk 0:02:59]} 4. Nc3 {[%clk 0:03:00]}  a6 {[%clk 0:02:59]} 5. cxd5 {[%clk 0:02:57]}  exd5 {[%clk 0:03:00]} 6. Bg5 {[%clk 0:02:57]}  Be6 {[%clk 0:03:01]} 7. Bxf6 {[%clk 0:02:43]}  Qxf6 {[%clk 0:03:02]} 8. Qb3 {[%clk 0:02:43]}  Ra7 {[%clk 0:03:02]} 9. g3 {[%clk 0:02:39]}  Bd6 {[%clk 0:03:02]} 10. h4 {[%clk 0:02:38]}  h6 {[%clk 0:03:01]} 11. Bh3 {[%clk 0:02:23]}  Qd8 {[%clk 0:02:38]} 12. e4 {[%clk 0:01:58]}  Bxh3 {[%clk 0:02:33]} 13. Rxh3 {[%clk 0:01:57]}  dxe4 {[%clk 0:02:33]} 14. Nxe4 {[%clk 0:01:57]}  Qd7 {[%clk 0:02:20]} 15. Rh1 {[%clk 0:01:50]}  O-O {[%clk 0:02:15]} 16. Kf1 {[%clk 0:01:48]}  Nc6 {[%clk 0:02:08]} 17. Kg2 {[%clk 0:01:43]}  Raa8 {[%clk 0:02:02]} 18. Rad1 {[%clk 0:01:37]}  b6 {[%clk 0:01:56]} 19. Rhe1 {[%clk 0:01:33]}  Rfe8 {[%clk 0:01:54]} 20. a3 {[%clk 0:01:05]}  Rad8 {[%clk 0:01:39]} 21. Qd5 {[%clk 0:01:03]}  Ne7 {[%clk 0:01:34]} 22. Qc4 {[%clk 0:00:57]}  b5 {[%clk 0:01:30]} 23. Qd3 {[%clk 0:00:49]}  Nd5 {[%clk 0:01:29]} 24. Nc3 {[%clk 0:00:41]}  Nxc3 {[%clk 0:01:24]} 25. Qxc3 {[%clk 0:00:40]}  Qf5 {[%clk 0:01:25]} 26. Qc6 {[%clk 0:00:38]}  Qc8 {[%clk 0:01:22]} 27. Rxe8+ {[%clk 0:00:32]}  Rxe8 {[%clk 0:01:23]} 28. Re1 {[%clk 0:00:31]}  Rd8 {[%clk 0:01:21]} 29. Re4 {[%clk 0:00:27]}  Qa8 {[%clk 0:01:20]} 30. Qc2 {[%clk 0:00:22]}  Re8 {[%clk 0:01:17]} 31. d5 {[%clk 0:00:18]}  Rd8 {[%clk 0:01:05]} 32. Rd4 {[%clk 0:00:18]}  Qb7 {[%clk 0:01:03]} 33. Qe4 {[%clk 0:00:16]}  Qa8 {[%clk 0:01:01]} 34. h5 {[%clk 0:00:16]}  Re8 {[%clk 0:01:01]} 35. Qg4 {[%clk 0:00:17]}  Be7 {[%clk 0:00:54]} 36. Qf4 {[%clk 0:00:13]}  Qb7 {[%clk 0:00:45]} 37. Qf5 {[%clk 0:00:12]}  Qc8 {[%clk 0:00:42]} 38. Qc2 {[%clk 0:00:11]}  Qd7 {[%clk 0:00:39]} 39. Rd3 {[%clk 0:00:11]}  Qf5 {[%clk 0:00:37]} 40. Qd2 {[%clk 0:00:10]}  Qxh5 {[%clk 0:00:35]} 41. Qe3 {[%clk 0:00:08]}  Kf8 {[%clk 0:00:33]} 42. Rc3 {[%clk 0:00:01]}  Bb4 {[%clk 0:00:30]} 0-1


[Site "https://www.chess.com"]

[Event "Titled Tuesday Blitz October 26 2021"]
[White "Seo, Jung Min"]
[Black "Dorokhin, Mykhailo"]
[WhiteFideId "1734687"]
[BlackFideId "14114178"]
[WhiteElo "2486"]
[BlackElo "2280"]
[Result "0-1"]
[Round "07"]
[TimeControl "180+1"]
[Date "2021.10.26"]
[WhiteClock "0:00:01"]
[BlackClock "0:01:10"]

1. Nf3 {[%clk 0:03:00]}  d5 {[%clk 0:02:59]} 2. d4 {[%clk 0:03:01]}  Nf6 {[%clk 0:03:00]} 3. c4 {[%clk 0:03:01]}  e6 {[%clk 0:02:59]} 4. Nc3 {[%clk 0:03:01]}  Nbd7 {[%clk 0:02:58]} 5. cxd5 {[%clk 0:02:57]}  exd5 {[%clk 0:02:58]} 6. Bg5 {[%clk 0:02:57]}  c6 {[%clk 0:02:55]} 7. e3 {[%clk 0:02:57]}  Qb6 {[%clk 0:02:53]} 8. Qc2 {[%clk 0:02:56]}  Be7 {[%clk 0:02:50]} 9. Bd3 {[%clk 0:02:55]}  Nf8 {[%clk 0:02:48]} 10. Ne5 {[%clk 0:02:50]}  Ne6 {[%clk 0:02:47]} 11. Bh4 {[%clk 0:02:48]}  g6 {[%clk 0:02:46]} 12. O-O {[%clk 0:02:40]}  Ng7 {[%clk 0:02:46]} 13. Na4 {[%clk 0:02:35]}  Qd8 {[%clk 0:02:38]} 14. Nc5 {[%clk 0:02:35]}  Rb8 {[%clk 0:02:35]} 15. b4 {[%clk 0:02:24]}  Bf5 {[%clk 0:02:32]} 16. b5 {[%clk 0:02:19]}  Bxd3 {[%clk 0:02:27]} 17. Qxd3 {[%clk 0:02:19]}  Nf5 {[%clk 0:02:15]} 18. Bxf6 {[%clk 0:02:15]}  Bxf6 {[%clk 0:02:14]} 19. bxc6 {[%clk 0:01:48]}  Bxe5 {[%clk 0:02:14]} 20. dxe5 {[%clk 0:01:48]}  bxc6 {[%clk 0:02:13]} 21. Rac1 {[%clk 0:01:39]}  O-O {[%clk 0:02:12]} 22. Rc3 {[%clk 0:01:31]}  Re8 {[%clk 0:02:10]} 23. f4 {[%clk 0:01:30]}  d4 {[%clk 0:02:09]} 24. exd4 {[%clk 0:01:29]}  Qxd4+ {[%clk 0:02:09]} 25. Qxd4 {[%clk 0:01:28]}  Nxd4 {[%clk 0:02:10]} 26. Re1 {[%clk 0:01:16]}  Red8 {[%clk 0:02:08]} 27. Kf1 {[%clk 0:01:03]}  Rb2 {[%clk 0:02:06]} 28. Rd3 {[%clk 0:00:58]}  Rd5 {[%clk 0:02:01]} 29. Ne4 {[%clk 0:00:57]}  Nc2 {[%clk 0:01:36]} 30. Nf6+ {[%clk 0:00:25]}  Kg7 {[%clk 0:01:29]} 31. Rxd5 {[%clk 0:00:08]}  Nxe1 {[%clk 0:01:11]} 32. Rd8 {[%clk 0:00:03]}  Nxg2 {[%clk 0:01:11]} 33. Rg8+ {[%clk 0:00:02]}  Kh6 {[%clk 0:01:11]} 34. f5 {[%clk 0:00:01]}  Ne3+ {[%clk 0:01:10]} 35. Ke1 {[%clk 0:00:01]}  Nxf5 {[%clk 0:01:10]} 0-1


[Site "https://www.chess.com"]